Cogmind - Beta 9.4 *** ADVENTURER MODE // 2020.02.08 @ 11:24:43 Player: JayDee Result: Destroyed by G-34 Mercenary with Small Laser Performance ------------- Evolutions (0) 0 Regions Visited (1) 200 Robots Destroyed (16) 80 Value Destroyed (390) 390 Prototype IDs (0) 0 Alien Tech Used (0) 0 Bonus (0) 0 TOTAL SCORE: 670 Bonus ------- None Cogmind --------- Core Integrity 0/250 Matter 290/300 Energy 246/250 System Corruption 1% Temperature Cool (14) Movement Walking (150) Ox1 Location -10/Materials Parts ------- > --- POWER (1) -------- Ion Engine > --- PROPULSION (2) --- Aluminum Leg Aluminum Leg > --- UTILITY (2) ------ Disposable Heat Sink Large Storage Unit > --- WEAPON (2) ------- (None) > --- INVENTORY (10) --- Ion Engine Aluminum Leg Disposable Heat Sink Disposable Heat Sink Disposable Heat Sink Large Storage Unit Small Matter Pod (50) Seismic Analyzer Peak State ------------ > --- POWER ------------ Light Ion Engine > --- PROPULSION ------- Aluminum Leg Aluminum Leg > --- UTILITY ---------- Disposable Heat Sink Large Storage Unit > --- WEAPON ----------- Medium Laser Medium Laser > --- INVENTORY -------- Ion Engine Aluminum Leg Aluminum Leg Aluminum Leg Aluminum Leg Large Storage Unit Small Matter Pod Sensor Array Seismic Analyzer Beam Cannon [Rating: 9] Favorites ----------- Power Light Ion Engine Engine Light Ion Engine Propulsion Aluminum Leg Leg Aluminum Leg Utility Large Storage Unit Device Sensor Array Storage Large Storage Unit Weapon Medium Laser Energy Gun Medium Laser Energy Cannon Beam Cannon Build | -11 -10 ------- Run | Scr Mat Slots Evolved . | . . Power . | . . Propulsion . | . . Utility . | . . Weapon . | . . Parts Attached 18 | 7 11 Power 2 | 1 1 Engine 2 | 1 1 Core . | . . Reactor . | . . Propulsion 5 | 2 3 Treads . | . . Leg 5 | 2 3 Wheel . | . . Hover . | . . Flight . | . . Utility 6 | 2 4 Device 2 | . 2 Storage 4 | 2 2 Processor . | . . Hackware . | . . Protection . | . . Artifact . | . . Weapon 5 | 2 3 Energy Gun 4 | 2 2 Energy Cannon 1 | . 1 Ballistic Gun . | . . Ballistic Cannon . | . . Launcher . | . . Special Weapon . | . . Impact Weapon . | . . Slashing Weapon . | . . Piercing Weapon . | . . Special Melee Weapon . | . . Unidentified Prototypes . | . . Parts Lost 3 | . 3 Power . | . . Propulsion 1 | . 1 Utility . | . . Weapon 2 | . 2 Highest Loss Streak 3 | . 3 Average Slot Usage (%) 97 | . 97 Engine 14 | . 14 Leg 27 | . 27 Device 8 | . 8 Storage 19 | . 19 Energy Gun 20 | . 20 Energy Cannon 7 | . 7 Naked Turns . | . . Heaviest Build 26 | 12 26 Greatest Support 20 | 20 20 Greatest Overweight (x) 7 | 2 7 Average Overweight (x) . | . . Largest Inventory Capacity 10 | 6 10 Average Capacity 9 | 5 9 Most Carried 10 | 3 10 Average Carried 6 | 2 7 Final Capacity 10 | 6 10 Final Carried 8 | 3 8 Class Distribution -------------------- 100% | Mutant Dominant Class ---------------- Mutant | -10/Materials Resources | -11 -10 ----------- Run | Scr Mat Matter Collected 398 | 298 100 Remotely . | . . Salvage Created 547 | 142 405 Parts 27 | 10 17 Haulers Intercepted . | . . Recyclers Shooed . | . . Parts Field Recycled . | . . Retrieved Matter . | . . Parts Self-Destructed . | . . Prevented . | . . Kills | -11 -10 ------- Run | Scr Mat Combat Hostiles Destroyed 9 | . 9 Guns 2 | . 2 Cannons 6 | . 6 Classes Destroyed 5 | 3 2 Worker 2 | 2 . Tunneler 3 | 3 . Recycler 1 | 1 . Watcher 1 | . 1 Grunt 9 | . 9 Best Kill Streak 3 | 3 2 Combat Bots Only 2 | . 2 Max Kills in Single Turn 2 | 2 1 Gunslinging . | . . Exploded . | . . Melee . | . . Uniques/NPCs Destroyed . | . . Combat | -11 -10 -------- Run | Scr Mat Damage Taken 770 | . 770 Core 253 | . 253 Absorbed by Shields . | . . Core Remaining (%) 100 | 100 . Volleys Fired 46 | 8 38 Largest 2 | 2 2 Hottest 110 | 100 110 Shots Fired 92 | 16 76 Gun 64 | 16 48 Cannon 28 | . 28 Launcher . | . . Special . | . . Kinetic . | . . Thermal 92 | 16 76 Explosive . | . . Electromagnetic . | . . Robot Hit Streak 20 | 12 20 Robot Miss Streak 2 | . 2 Penetration Max . | . . Secondary Targets . | . . Shots Hit Robots 72 | 12 60 Core Hits 26 | 7 19 Critical Hits . | . . Critical Kills . | . . Critical Parts Destroyed . | . . Melee Attacks . | . . Impact . | . . Slashing . | . . Piercing . | . . Sneak Attacks . | . . Combat Hostiles . | . . Follow-up Attacks . | . . Damage Inflicted 938 | 161 777 Guns 637 | 161 476 Cannons 298 | . 298 Explosions . | . . Melee . | . . Ramming 3 | . 3 Kinetic . | . . Thermal 935 | 161 774 Explosive . | . . Electromagnetic . | . . Impact . | . . Slashing . | . . Piercing . | . . Highest Corruption 1 | . 1 Average Corruption 1 | . 1 Corruption Purged . | . . Effects 4 | . 4 Message Errors 1 | . 1 Data Loss (minor) 1 | . 1 Targeting Errors 2 | . 2 Overload Shots . | . . Overflow Damage 7 | . 7 Projectiles 7 | . 7 Explosions . | . . Melee . | . . Knockbacks . | . . Impact . | . . Kinetic . | . . Secondary . | . . Self-Inflicted Damage . | . . Shots . | . . Rammed . | . . Targets Rammed 1 | . 1 Kicked 1 | . 1 Crushed . | . . Highest Temperature 821 | 159 821 Average Temperature 219 | 60 252 Received Heat Transfer 447 | . 447 Effects 22 | . 22 Shutdowns 4 | . 4 Energy Bleed 3 | . 3 Interference 1 | . 1 Matter Decay 2 | . 2 Damage (minor) 5 | . 5 Damage (major) 4 | . 4 Damage (core) 3 | . 3 Siege Activations . | . . Robots Corrupted . | . . Combat Hostiles . | . . Parts Fried . | . . Impact Corruptions . | . . Robots Melted 1 | . 1 Combat Hostiles 1 | . 1 Parts Melted 7 | 1 6 Heat Transferred 2516 | 481 2035 Parts Sabotaged . | . . Parts Stolen . | . . Parts Stripped . | . . Power Chain Reactions . | . . Missiles Intercepted . | . . Alert | -11 -10 ------- Run | Scr Mat Peak Influence 208 | 30 208 Average Influence 72 | 9 83 Maximum Alert Level 1 | . 1 Low Security (%) 94 | 100 92 Level 1 5 | . 7 Level 2 . | . . Level 3 . | . . Level 4 . | . . Level 5 . | . . High Security . | . . Max Security . | . . Squads Dispatched 2 | . 2 Investigation 2 | . 2 Extermination . | . . Reinforcement . | . . Assault . | . . Garrison . | . . Intercept . | . . Construction Impeded . | . . Haulers Reinforced . | . . Stealth | -11 -10 --------- Run | Scr Mat Distress Signals 1 | . 1 Communications Jammed . | . . Distress Signals . | . . Times Spotted 17 | . 17 Peak Tracking Total 4 | . 4 Tactical Retreats 3 | . 3 Traps | -11 -10 ------- Run | Scr Mat Traps Triggered 1 | . 1 Indirectly . | . . Trap Hack Attempts . | . . Triggered . | . . Disarmed . | . . Reprogrammed . | . . Reused . | . . Traps Extracted . | . . Installed . | . . Triggered . | . . Machines | -11 -10 ---------- Run | Scr Mat Machines Disabled . | . . Max in Single Turn . | . . Machines Sabotaged . | . . Garrisons Compromised . | . . Overloaded Fab Kills . | . . Fab Network Shutdowns . | . . Hacking | -11 -10 --------- Run | Scr Mat Machines Accessed 4 | . 4 Terminals 3 | . 3 Fabricators . | . . Repair Stations . | . . Recycling Units 1 | . 1 Scanalyzers . | . . Garrison Access . | . . Total Hacks 10 | . 10 Successful 4 | . 4 Failed 6 | . 6 Catastrophic 3 | . 3 Database Lockouts . | . . Manual 10 | . 10 Terminals 9 | . 9 Fabricators . | . . Repair Stations . | . . Recycling Units 1 | . 1 Scanalyzers . | . . Garrison Access . | . . Terminal Hacks . | . . Fabricator Hacks . | . . Repair Station Hacks . | . . Recycling Unit Hacks 1 | . 1 Report Inventory 1 | . 1 Scanalyzer . | . . Garrison Access Hacks . | . . Unauthorized Hacks 12 | . 12 Terminals 3 | . 3 Detonate 3 | . 3 Fabricators . | . . Repair Stations . | . . Recycling Units . | . . Scanalyzers . | . . Garrison Access . | . . Data Cores Recovered . | . . Used . | . . Hacking Detections 3 | . 3 Full Trace Events 3 | . 3 Feedback Events . | . . Feedback Blocked . | . . Robot Schematics Acquired . | . . Robots Built . | . . Matter . | . . Time . | . . Total Robot Build Rating . | . . Part Schematics Acquired . | . . Parts Built . | . . Matter . | . . Time . | . . Total Part Build Rating . | . . Parts Repaired . | . . Time . | . . Parts Recycled . | . . Recycled Matter . | . . Retrieved Matter . | . . Retrieved Components . | . . Parts Scanalyzed . | . . Part Schematics Acquired . | . . Parts Damaged . | . . Bothacking | -11 -10 ------------ Run | Scr Mat Used RIF Installer . | . . Robots Hacked . | . . Non-combat . | . . Combat . | . . Robot Hacks Applied . | . . Relay Couplers Released . | . . Robots Rewired . | . . Allies Hacked . | . . Hacks Repelled . | . . Allies | -11 -10 -------- Run | Scr Mat Total Allies . | . . Largest Group . | . . Highest-Rated Group . | . . Highest-Rated Ally . | . . Total Orders . | . . Ally Attacks . | . . Total Damage . | . . Kills . | . . Allies Corrupted . | . . Allies Melted . | . . Intel | -11 -10 ------- Run | Scr Mat Robot Analysis Total . | . . Derelict Logs Recovered . | . . Drone Launches . | . . Drone Recoveries . | . . Exploration | -11 -10 ------------- Run | Scr Mat Turns Passed 920 | 135 785 Spaces Moved 500 | 82 418 Core 7 | 6 1 Treads . | . . Legs 493 | 76 417 Wheels . | . . Hover . | . . Flight . | . . Fastest Speed 50 | 50 120 Average Speed 143 | 118 148 Slowest Speed 400 | 150 400 Overloaded Moves . | . . Propulsion Burnouts . | . . Robots Hopped . | . . Cave-ins Triggered . | . . Exploration Rate (%) 29 | 4 54 Regions Visited 1 Branch Regions . Pre-discovered Areas . | . . Known Exits Taken . | . . Unknown Exits Taken 1 | 1 . Scrap Searched . | . . Spaces Dug . | . . Terrain Destroyed . | . . Melee . | . . Projectile . | . . AOE . | . . Actions | -11 -10 --------- Run | Scr Mat Total 612 | 101 511 Wait 20 | . 20 Move 499 | 81 418 Hop . | . . Pick Up 11 | 5 6 Fast Attach 12 | 5 7 Attach 6 | 2 4 Detach 10 | . 10 Swap . | . . Drop 7 | . 7 Fire 46 | 8 38 Melee . | . . Ram . | . . Kick 1 | . 1 Crush . | . . Escape Stasis . | . . Rewire . | . . Trap . | . . Miscellaneous . | . . Route ------- -11/Scrapyard -10/Materials (discovered 2 exits: [*Mat x2]) History --------- Turn | Location | Event 23 | -11/Scrapyard | Discovered new exit (range 15) 136 | -11/Scrapyard | Entered Materials 303 | -10/Materials | Build established: Mutant 448 | -10/Materials | Discovered new exit (range 13) 617 | -10/Materials | Discovered new exit (range 16) 704 | -10/Materials | Core integrity fell below 50% 880 | -10/Materials | Core integrity fell below 20% 921 | -10/Materials | Destroyed by G-34 Mercenary with Small Laser Last Messages --------------- Testing... Scanning machine control network... Found 2 applicable machines. VQLADCQ7K5: Nuclear Reactor L44V1QVDH1: Nuclear Reactor Infected machine control systems. 00872_ ALERT: Suspicious activity at Terminal M008. Dispatching Investigation squad. 00878_ Connecting with Terminal... >>Trojan(Detonate) Trojan loaded successfully. Testing... Scanning machine control network... Found 2 applicable machines. KNCC30BVLL: Nuclear Reactor XYLN159IWC: Nuclear Reactor Infected machine control systems. 00897_ Aluminum Leg destroyed. 00901_ Med. Laser destroyed. 00910_ Dropped Lgt. Ion Engine. Map ----- +----------------------------------------------------+ | ????????????????????# ""T"" #???????????????????? | | ????????????????????# #???????????????????? | | ????????????????????# #???????????????????? | | ????????????????????# #???????????????????? | | ????????????????????# """ #???????????????????? | | ????????????????????# """ #???????????????????? | | ????????????????????# """ #???????????????????? | | ??????????######????# #???????????????????? | | ??????????? #????#####+########???????????????? | | ???????????# < #?#####?# +? [#???????????????? | | ???????????# #?#"""#?# # #???????????????? | | ???????????# ###"Y"### # #???????????????? | | ???????????# [ + [[[ #???????????????? | | ???????????# # [[[ #???????????????? | | ???????????# !== T g# [[[ #???????????????? | | ???????????# != g #? #???????????????? | | ############ == #? #???????????????? | | * #??"" #???????????????? | | ^ #??"" #???????????????? | | ??????###### ###""T""# #???" #???????????????? | | ??????###### #?#"""""# #??? #???????????????? | | ??????# # #?####### #?????????????????????? | | ??????# # #???????# #?????????????????????? | | ??????# # #???????# #?????????????????????? | | ??????# "" #% #???????# #?????????????????????? | | ####### ""%+% #???????# @ #?????????????????????? | | # T"%#% #???????# #?????????????????????? | | """ # "" # #???????# #?????????????????????? | | """ # "" # #???????# #?????????????????????? | | """ # # #???????# #?????????????????????? | | ###### #???????# #?????????????????????? | | *! #????# #???????# #?????????????????????? | | *! ###### ######### #?????????????????????? | | !! ## ] #?????????????????????? | | ## == #?????????????????????? | | ########!!! k #????? #??????????????? | | ???????#!! #############u #### ######?????????? | | ???????#!! #???????????# ????????? | | ???????#!! #????######## ????????? | | ???????#####????# ????????? | | ????????????????# ##################?????????? | | ????????????????# #??????????????????????????? | | #################% #??????????????????????????? | | % %[%=! #??????????????????????????? | | ############## ##??????????????????????????? | | #????????????# #???????????????????????????? | | #####????????????# #???????????????????????????? | | ?????????????????# #???????????????????????????? | | ?????????????????# #???????????????????????????? | | ?????????????????# ???????????????????????????? | +----------------------------------------------------+ Best States ------------- Heat Dissipation 25 Coolant Potential 50 Energy Generation 10 Energy Capacity 250 Matter Stores 350 Matter Capacity 350 Sight Range 16 Robot Scan Range 10 Terrain Scan Density 10 Resistance: KI 20 Resistance: TH 20 Resistance: EX 20 Resistance: EM 20 Resistance: I 20 Resistance: S 20 Resistance: P 20 Evasion (%) 40 Offensive Hacking 10 Item Schematics ----------------- None Robot Schematics ------------------ None Fabricated ------------ Nothing Alien Tech Used ----------------- None Achievements -------------- True Hacker Challenges ------------ None Game ------ Seed FlakDiametricMallet Manual? 0 Play Time 00:12:00 Cumulative 11.5 hours Start 2020.02.08 @ 11:12:26 End 2020.02.08 @ 11:24:43 Sessions 1 Manual Loads 0 Difficulty Adventurer Special Mode None Game No. 13 Rogue 3 Adventurer 10 Explorer 0 Win Type - Total 0 Types 0/0/0/0/0/0/0 Lore% 12 Gallery% 17 Achievement% 14 Wizard Run 0 Options --------- ASCII 1 Keyboard 1 Movement Vi Keybinds 0 Fullscreen 1 Font 14/Dina Map View 76x50 Tactical HUD 1 Map Filters NONE Filters NONE Steam 1 RUN: 6e1aef30-93de-40bb-8c63-8ee7bf415772